[Event "Titled Tuesday Blitz July 4 Early 2023"]
[White "Ganiev, Roman"]
[Black "Fernandez Siles, Luis"]
[WhiteFideId "4131452"]
[BlackFideId "2209420"]
[WhiteElo "2587"]
[BlackElo "2375"]
[Result "1-0"]
[Round "9"]
[TimeControl "180+2"]
[Date "2023.07.04"]
[WhiteClock "0:00:25"]
[BlackClock "0:00:00"]
[Board "125"]

1. e4 {[%clk 0:03:00]}  c5 {[%clk 0:02:58]} 2. Nf3 {[%clk 0:02:59]}  Nc6 {[%clk 0:02:57]} 3. Bb5 {[%clk 0:02:55]}  g6 {[%clk 0:02:57]} 4. O-O {[%clk 0:02:54]}  Bg7 {[%clk 0:02:57]} 5. Re1 {[%clk 0:02:54]}  Nf6 {[%clk 0:02:56]} 6. e5 {[%clk 0:02:54]}  Nd5 {[%clk 0:02:56]} 7. Nc3 {[%clk 0:02:55]}  Nc7 {[%clk 0:02:56]} 8. Bf1 {[%clk 0:02:54]}  O-O {[%clk 0:02:52]} 9. d3 {[%clk 0:02:51]}  d6 {[%clk 0:02:50]} 10. exd6 {[%clk 0:02:51]}  exd6 {[%clk 0:02:44]} 11. Bg5 {[%clk 0:02:50]}  f6 {[%clk 0:02:41]} 12. Bf4 {[%clk 0:02:50]}  Ne5 {[%clk 0:02:41]} 13. h3 {[%clk 0:02:47]}  Ne6 {[%clk 0:02:37]} 14. Bg3 {[%clk 0:02:47]}  Nxf3+ {[%clk 0:02:29]} 15. Qxf3 {[%clk 0:02:41]}  Nd4 {[%clk 0:01:47]} 16. Qd1 {[%clk 0:02:41]}  b6 {[%clk 0:01:37]} 17. Ne4 {[%clk 0:02:41]}  f5 {[%clk 0:01:33]} 18. Nd2 {[%clk 0:02:18]}  f4 {[%clk 0:01:27]} 19. Bh2 {[%clk 0:02:19]}  Bb7 {[%clk 0:01:25]} 20. c3 {[%clk 0:02:16]}  Nc6 {[%clk 0:01:15]} 21. Be2 {[%clk 0:02:16]}  Ne5 {[%clk 0:01:13]} 22. Nf3 {[%clk 0:02:16]}  Nd7 {[%clk 0:00:59]} 23. d4 {[%clk 0:02:09]}  Kh8 {[%clk 0:00:53]} 24. Qd2 {[%clk 0:02:02]}  Qf6 {[%clk 0:00:50]} 25. Rad1 {[%clk 0:02:01]}  Rad8 {[%clk 0:00:46]} 26. Bb5 {[%clk 0:01:53]}  Bxf3 {[%clk 0:00:39]} 27. gxf3 {[%clk 0:01:54]}  cxd4 {[%clk 0:00:35]} 28. Kh1 {[%clk 0:01:38]}  Ne5 {[%clk 0:00:28]} 29. Qe2 {[%clk 0:01:22]}  dxc3 {[%clk 0:00:20]} 30. bxc3 {[%clk 0:01:23]}  Qh4 {[%clk 0:00:20]} 31. Qf1 {[%clk 0:00:59]}  Nxf3 {[%clk 0:00:19]} 32. Re6 {[%clk 0:01:00]}  Ng5 {[%clk 0:00:13]} 33. Re2 {[%clk 0:00:47]}  Nxh3 {[%clk 0:00:13]} 34. Bc6 {[%clk 0:00:45]}  f3 {[%clk 0:00:12]} 35. Rc2 {[%clk 0:00:40]}  Be5 {[%clk 0:00:12]} 36. Rd4 {[%clk 0:00:33]}  Qh5 {[%clk 0:00:09]} 37. Rd5 {[%clk 0:00:25]}  Nf4 {[%clk 0:00:00]} 38. Rd4 {[%clk 0:00:25]} 1-0


[Site "https://www.chess.com"]

[Event "Titled Tuesday Blitz July 4 Early 2023"]
[White "Gaal, Zsoka"]
[Black "Moral Garcia, Serafin"]
[WhiteFideId "777765"]
[BlackFideId "2201925"]
[WhiteElo "2351"]
[BlackElo "2561"]
[Result "1-0"]
[Round "9"]
[TimeControl "180+2"]
[Date "2023.07.04"]
[WhiteClock "0:01:52"]
[BlackClock "0:02:00"]
[Board "127"]

1. Nf3 {[%clk 0:02:54]}  Nf6 {[%clk 0:02:59]} 2. b3 {[%clk 0:02:55]}  g6 {[%clk 0:02:58]} 3. Bb2 {[%clk 0:02:55]}  Bg7 {[%clk 0:02:59]} 4. g3 {[%clk 0:02:56]}  c5 {[%clk 0:02:58]} 5. Bg2 {[%clk 0:02:56]}  O-O {[%clk 0:02:59]} 6. O-O {[%clk 0:02:57]}  Nc6 {[%clk 0:02:59]} 7. c4 {[%clk 0:02:58]}  d6 {[%clk 0:02:58]} 8. d4 {[%clk 0:02:57]}  Ne4 {[%clk 0:02:58]} 9. e3 {[%clk 0:02:54]}  Bg4 {[%clk 0:02:57]} 10. h3 {[%clk 0:02:52]}  Bxf3 {[%clk 0:02:57]} 11. Bxf3 {[%clk 0:02:53]}  Ng5 {[%clk 0:02:57]} 12. Bg2 {[%clk 0:02:53]}  cxd4 {[%clk 0:02:56]} 13. exd4 {[%clk 0:02:44]}  Ne6 {[%clk 0:02:55]} 14. Bxc6 {[%clk 0:02:37]}  bxc6 {[%clk 0:02:56]} 15. Na3 {[%clk 0:02:38]}  c5 {[%clk 0:02:49]} 16. Nc2 {[%clk 0:02:37]}  Qb6 {[%clk 0:02:49]} 17. dxc5 {[%clk 0:02:35]}  Qxc5 {[%clk 0:02:49]} 18. Bxg7 {[%clk 0:02:35]}  Kxg7 {[%clk 0:02:50]} 19. Qd3 {[%clk 0:02:33]}  Rfd8 {[%clk 0:02:47]} 20. Rad1 {[%clk 0:02:33]}  Rac8 {[%clk 0:02:47]} 21. Kg2 {[%clk 0:02:28]}  d5 {[%clk 0:02:46]} 22. cxd5 {[%clk 0:02:22]}  Nf4+ {[%clk 0:02:28]} 23. gxf4 {[%clk 0:02:22]}  Qxc2 {[%clk 0:02:29]} 24. Qxc2 {[%clk 0:02:08]}  Rxc2 {[%clk 0:02:29]} 25. Rfe1 {[%clk 0:02:08]}  Kf6 {[%clk 0:02:27]} 26. a4 {[%clk 0:02:07]}  Rc3 {[%clk 0:02:25]} 27. Re3 {[%clk 0:02:08]}  Rdc8 {[%clk 0:02:18]} 28. Kf3 {[%clk 0:02:02]}  a5 {[%clk 0:02:11]} 29. d6 {[%clk 0:01:53]}  exd6 {[%clk 0:02:04]} 30. Rxd6+ {[%clk 0:01:54]}  Kg7 {[%clk 0:02:05]} 31. Rd5 {[%clk 0:01:53]}  Rb8 {[%clk 0:02:00]} 32. Rxc3 {[%clk 0:01:52]} 1-0


[Site "https://www.chess.com"]

[Event "Titled Tuesday Blitz July 4 Early 2023"]
[White "only_strong_moves"]
[Black "Korpics, Zsolt"]
[BlackFideId "705241"]
[WhiteElo "2508"]
[BlackElo "2351"]
[Result "1-0"]
[Round "9"]
[TimeControl "180+2"]
[Date "2023.07.04"]
[WhiteClock "0:01:01"]
[BlackClock "0:00:00"]
[Board "129"]

1. e4 {[%clk 0:02:59]}  c5 {[%clk 0:02:59]} 2. Nf3 {[%clk 0:02:58]}  e6 {[%clk 0:03:00]} 3. c4 {[%clk 0:02:56]}  Nc6 {[%clk 0:03:00]} 4. Nc3 {[%clk 0:02:55]}  e5 {[%clk 0:03:00]} 5. g3 {[%clk 0:02:51]}  d6 {[%clk 0:03:00]} 6. Bg2 {[%clk 0:02:51]}  g6 {[%clk 0:02:59]} 7. O-O {[%clk 0:02:50]}  Bg7 {[%clk 0:03:00]} 8. d3 {[%clk 0:02:51]}  Nge7 {[%clk 0:03:01]} 9. Bg5 {[%clk 0:02:49]}  O-O {[%clk 0:03:01]} 10. a3 {[%clk 0:02:46]}  h6 {[%clk 0:03:00]} 11. Be3 {[%clk 0:02:46]}  f5 {[%clk 0:02:59]} 12. Qd2 {[%clk 0:02:36]}  Kh7 {[%clk 0:02:26]} 13. Nd5 {[%clk 0:02:30]}  Be6 {[%clk 0:02:23]} 14. b4 {[%clk 0:02:28]}  b6 {[%clk 0:02:21]} 15. Ne1 {[%clk 0:02:20]}  Rc8 {[%clk 0:02:19]} 16. Rb1 {[%clk 0:02:18]}  g5 {[%clk 0:02:11]} 17. f4 {[%clk 0:02:17]}  gxf4 {[%clk 0:01:58]} 18. gxf4 {[%clk 0:02:18]}  Nd4 {[%clk 0:01:40]} 19. Kh1 {[%clk 0:02:09]}  Ng6 {[%clk 0:01:26]} 20. fxe5 {[%clk 0:02:03]}  Nxe5 {[%clk 0:01:02]} 21. Bxd4 {[%clk 0:01:55]}  cxd4 {[%clk 0:01:03]} 22. Bh3 {[%clk 0:01:53]}  Bxd5 {[%clk 0:00:38]} 23. exd5 {[%clk 0:01:47]}  Ng4 {[%clk 0:00:27]} 24. Ng2 {[%clk 0:01:43]}  Be5 {[%clk 0:00:25]} 25. Bxg4 {[%clk 0:01:34]}  fxg4 {[%clk 0:00:25]} 26. Qe2 {[%clk 0:01:34]}  Qg5 {[%clk 0:00:21]} 27. Qe4+ {[%clk 0:01:30]}  Kg7 {[%clk 0:00:22]} 28. Rbe1 {[%clk 0:01:19]}  Rxf1+ {[%clk 0:00:19]} 29. Rxf1 {[%clk 0:01:19]}  Qh5 {[%clk 0:00:19]} 30. Nf4 {[%clk 0:01:14]}  Bxf4 {[%clk 0:00:13]} 31. Rxf4 {[%clk 0:01:15]}  g3 {[%clk 0:00:05]} 32. Rg4+ {[%clk 0:01:12]}  Kf8 {[%clk 0:00:04]} 33. Qf3+ {[%clk 0:01:04]}  Ke7 {[%clk 0:00:03]} 34. Rg7+ {[%clk 0:01:03]}  Kd8 {[%clk 0:00:00]} 35. Qf8+ {[%clk 0:01:01]} 1-0


[Site "https://www.chess.com"]

[Event "Titled Tuesday Blitz July 4 Early 2023"]
[White "Vifleemskaia, Svetlana"]
[Black "Novikov, Evgenij"]
[WhiteFideId "4129490"]
[BlackFideId "4125380"]
[WhiteElo "2320"]
[BlackElo "2502"]
[Result "0-1"]
[Round "9"]
[TimeControl "180+2"]
[Date "2023.07.04"]
[WhiteClock "0:00:00"]
[BlackClock "0:00:06"]
[Board "130"]

1. d4 {[%clk 0:03:00]}  d5 {[%clk 0:03:00]} 2. c4 {[%clk 0:03:00]}  c6 {[%clk 0:03:00]} 3. cxd5 {[%clk 0:03:00]}  cxd5 {[%clk 0:03:00]} 4. Bf4 {[%clk 0:03:01]}  Nc6 {[%clk 0:02:59]} 5. e3 {[%clk 0:03:01]}  Nf6 {[%clk 0:02:58]} 6. Nc3 {[%clk 0:03:01]}  a6 {[%clk 0:02:58]} 7. Bd3 {[%clk 0:03:01]}  g6 {[%clk 0:02:56]} 8. h3 {[%clk 0:02:59]}  Bg7 {[%clk 0:02:56]} 9. Nf3 {[%clk 0:02:59]}  O-O {[%clk 0:02:56]} 10. O-O {[%clk 0:02:59]}  b5 {[%clk 0:02:54]} 11. Rc1 {[%clk 0:02:59]}  Bb7 {[%clk 0:02:55]} 12. Ne5 {[%clk 0:02:58]}  Rc8 {[%clk 0:02:53]} 13. Bb1 {[%clk 0:02:53]}  e6 {[%clk 0:02:51]} 14. Qd2 {[%clk 0:02:51]}  Nxe5 {[%clk 0:02:46]} 15. Bxe5 {[%clk 0:02:50]}  Nd7 {[%clk 0:02:45]} 16. Bxg7 {[%clk 0:02:48]}  Kxg7 {[%clk 0:02:46]} 17. b3 {[%clk 0:02:47]}  Qa5 {[%clk 0:02:37]} 18. Rfd1 {[%clk 0:02:46]}  Rc7 {[%clk 0:02:30]} 19. Qb2 {[%clk 0:02:38]}  Rfc8 {[%clk 0:02:25]} 20. Ne2 {[%clk 0:02:37]}  b4 {[%clk 0:02:18]} 21. Rxc7 {[%clk 0:02:33]}  Rxc7 {[%clk 0:02:18]} 22. Rc1 {[%clk 0:02:31]}  Kf8 {[%clk 0:02:00]} 23. Rxc7 {[%clk 0:02:29]}  Qxc7 {[%clk 0:02:01]} 24. Qc1 {[%clk 0:02:30]}  Qxc1+ {[%clk 0:01:59]} 25. Nxc1 {[%clk 0:02:29]}  a5 {[%clk 0:01:58]} 26. Bd3 {[%clk 0:02:28]}  Ke7 {[%clk 0:01:55]} 27. Kf1 {[%clk 0:02:28]}  Kd6 {[%clk 0:01:53]} 28. Bb5 {[%clk 0:02:24]}  Bc6 {[%clk 0:01:51]} 29. Be2 {[%clk 0:02:15]}  f6 {[%clk 0:01:41]} 30. Ke1 {[%clk 0:02:10]}  e5 {[%clk 0:01:40]} 31. Kd2 {[%clk 0:02:10]}  e4 {[%clk 0:01:32]} 32. g4 {[%clk 0:02:06]}  g5 {[%clk 0:01:25]} 33. f4 {[%clk 0:01:50]}  Nb6 {[%clk 0:01:08]} 34. f5 {[%clk 0:01:37]}  a4 {[%clk 0:01:08]} 35. Ba6 {[%clk 0:01:33]}  a3 {[%clk 0:01:06]} 36. Ne2 {[%clk 0:01:32]}  Be8 {[%clk 0:01:01]} 37. Ng3 {[%clk 0:01:31]}  Na8 {[%clk 0:00:59]} 38. Be2 {[%clk 0:01:23]}  Nc7 {[%clk 0:00:57]} 39. Bf1 {[%clk 0:01:18]}  Kc6 {[%clk 0:00:43]} 40. Be2 {[%clk 0:01:11]}  Kd6 {[%clk 0:00:38]} 41. Bf1 {[%clk 0:01:11]}  Ke7 {[%clk 0:00:38]} 42. Be2 {[%clk 0:01:10]}  Kf7 {[%clk 0:00:37]} 43. Nh5 {[%clk 0:01:02]}  Bb5 {[%clk 0:00:32]} 44. Ng3 {[%clk 0:00:57]}  Bxe2 {[%clk 0:00:25]} 45. Nxe2 {[%clk 0:00:57]}  Nb5 {[%clk 0:00:25]} 46. Kc2 {[%clk 0:00:57]}  Kg7 {[%clk 0:00:24]} 47. Kd2 {[%clk 0:00:57]}  h5 {[%clk 0:00:23]} 48. Kc2 {[%clk 0:00:55]}  hxg4 {[%clk 0:00:22]} 49. hxg4 {[%clk 0:00:54]}  Nd6 {[%clk 0:00:20]} 50. Kd2 {[%clk 0:00:54]}  Nf7 {[%clk 0:00:20]} 51. Nc3 {[%clk 0:00:11]}  bxc3+ {[%clk 0:00:20]} 52. Kxc3 {[%clk 0:00:11]}  Nd6 {[%clk 0:00:21]} 53. Kb4 {[%clk 0:00:09]}  Nxf5 {[%clk 0:00:21]} 54. Kxa3 {[%clk 0:00:06]}  Nxe3 {[%clk 0:00:19]} 55. Kb4 {[%clk 0:00:04]}  f5 {[%clk 0:00:13]} 56. a4 {[%clk 0:00:01]}  fxg4 {[%clk 0:00:10]} 57. a5 {[%clk 0:00:02]}  g3 {[%clk 0:00:10]} 58. a6 {[%clk 0:00:01]}  g2 {[%clk 0:00:11]} 59. a7 {[%clk 0:00:02]}  g1=Q {[%clk 0:00:11]} 60. a8=Q {[%clk 0:00:02]}  Qe1+ {[%clk 0:00:10]} 61. Kc5 {[%clk 0:00:02]}  Qc3+ {[%clk 0:00:09]} 62. Kd6 {[%clk 0:00:02]}  Qxd4 {[%clk 0:00:07]} 63. Qb7+ {[%clk 0:00:00]}  Kh6 {[%clk 0:00:06]} 0-1


[Site "https://www.chess.com"]

[Event "Titled Tuesday Blitz July 4 Early 2023"]
[White "Herzog2012"]
[Black "Sokolov, Andrei"]
[BlackFideId "11600306"]
[WhiteElo "2471"]
[BlackElo "2308"]
[Result "1-0"]
[Round "9"]
[TimeControl "180+2"]
[Date "2023.07.04"]
[WhiteClock "0:01:40"]
[BlackClock "0:01:21"]
[Board "132"]

1. e4 {[%clk 0:03:00]}  c6 {[%clk 0:02:59]} 2. d4 {[%clk 0:02:59]}  d5 {[%clk 0:02:58]} 3. Nc3 {[%clk 0:02:59]}  dxe4 {[%clk 0:02:58]} 4. Nxe4 {[%clk 0:03:00]}  Nd7 {[%clk 0:02:58]} 5. Ng5 {[%clk 0:02:58]}  Ngf6 {[%clk 0:02:56]} 6. Bd3 {[%clk 0:02:52]}  e6 {[%clk 0:02:39]} 7. N1f3 {[%clk 0:02:48]}  Bd6 {[%clk 0:02:31]} 8. Qe2 {[%clk 0:02:45]}  O-O {[%clk 0:02:30]} 9. Nxe6 {[%clk 0:02:42]}  fxe6 {[%clk 0:02:06]} 10. Qxe6+ {[%clk 0:02:43]}  Kh8 {[%clk 0:02:06]} 11. Qxd6 {[%clk 0:02:42]}  Re8+ {[%clk 0:02:04]} 12. Be3 {[%clk 0:02:29]}  Qa5+ {[%clk 0:01:58]} 13. c3 {[%clk 0:02:15]}  Nd5 {[%clk 0:01:58]} 14. O-O {[%clk 0:02:06]}  Nxe3 {[%clk 0:01:50]} 15. fxe3 {[%clk 0:02:07]}  Rxe3 {[%clk 0:01:50]} 16. Ne5 {[%clk 0:01:45]}  h6 {[%clk 0:01:31]} 17. Qf8+ {[%clk 0:01:39]}  Nxf8 {[%clk 0:01:21]} 18. Rxf8# {[%clk 0:01:40]} 1-0


[Site "https://www.chess.com"]

[Event "Titled Tuesday Blitz July 4 Early 2023"]
[White "Schut, Han"]
[Black "LangesNasenhaar"]
[WhiteFideId "1005561"]
[WhiteElo "2297"]
[BlackElo "2444"]
[Result "1-0"]
[Round "9"]
[TimeControl "180+2"]
[Date "2023.07.04"]
[WhiteClock "0:00:10"]
[BlackClock "0:00:00"]
[Board "135"]

1. e4 {[%clk 0:03:00]}  d6 {[%clk 0:02:59]} 2. d4 {[%clk 0:03:00]}  Nf6 {[%clk 0:02:59]} 3. Nc3 {[%clk 0:03:01]}  e5 {[%clk 0:02:59]} 4. f4 {[%clk 0:02:58]}  exd4 {[%clk 0:02:57]} 5. Qxd4 {[%clk 0:02:59]}  Nc6 {[%clk 0:02:57]} 6. Bb5 {[%clk 0:02:59]}  Bd7 {[%clk 0:02:57]} 7. Bxc6 {[%clk 0:03:00]}  bxc6 {[%clk 0:02:57]} 8. Nf3 {[%clk 0:02:56]}  c5 {[%clk 0:02:57]} 9. Qd3 {[%clk 0:02:53]}  Be7 {[%clk 0:02:57]} 10. Be3 {[%clk 0:02:53]}  O-O {[%clk 0:02:56]} 11. Rd1 {[%clk 0:02:51]}  Bc6 {[%clk 0:02:55]} 12. O-O {[%clk 0:02:43]}  Qb8 {[%clk 0:02:52]} 13. e5 {[%clk 0:02:28]}  Ng4 {[%clk 0:02:47]} 14. Bc1 {[%clk 0:02:21]}  Rd8 {[%clk 0:02:40]} 15. Qf5 {[%clk 0:02:04]}  Nh6 {[%clk 0:02:29]} 16. Qh3 {[%clk 0:01:55]}  Bd7 {[%clk 0:02:21]} 17. Qg3 {[%clk 0:01:38]}  Nf5 {[%clk 0:02:20]} 18. Qf2 {[%clk 0:01:36]}  h5 {[%clk 0:02:19]} 19. Nd5 {[%clk 0:01:29]}  Bf8 {[%clk 0:02:19]} 20. Nh4 {[%clk 0:01:14]}  Nxh4 {[%clk 0:01:46]} 21. Qxh4 {[%clk 0:01:15]}  Bg4 {[%clk 0:01:44]} 22. f5 {[%clk 0:00:47]}  dxe5 {[%clk 0:01:24]} 23. f6 {[%clk 0:00:39]}  g6 {[%clk 0:00:50]} 24. Rd2 {[%clk 0:00:16]}  Rxd5 {[%clk 0:00:31]} 25. Rxd5 {[%clk 0:00:16]}  c6 {[%clk 0:00:32]} 26. Rd3 {[%clk 0:00:11]}  Qc8 {[%clk 0:00:28]} 27. h3 {[%clk 0:00:10]}  Be6 {[%clk 0:00:23]} 28. g4 {[%clk 0:00:11]}  hxg4 {[%clk 0:00:18]} 29. hxg4 {[%clk 0:00:11]}  Bxg4 {[%clk 0:00:09]} 30. Rg3 {[%clk 0:00:11]}  Bf5 {[%clk 0:00:06]} 31. Bh6 {[%clk 0:00:11]}  Bd6 {[%clk 0:00:00]} 32. Bg7 {[%clk 0:00:10]} 1-0


[Site "https://www.chess.com"]

[Event "Titled Tuesday Blitz July 4 Early 2023"]
[White "Thiel, Thomas"]
[Black "Carrasco Miranda, Andres"]
[WhiteFideId "4615964"]
[BlackFideId "3405990"]
[WhiteElo "2222"]
[BlackElo "2403"]
[Result "0-1"]
[Round "9"]
[TimeControl "180+2"]
[Date "2023.07.04"]
[WhiteClock "0:00:35"]
[BlackClock "0:00:27"]
[Board "142"]

1. e4 {[%clk 0:03:00]}  e5 {[%clk 0:02:57]} 2. Nf3 {[%clk 0:02:58]}  Nc6 {[%clk 0:02:56]} 3. d4 {[%clk 0:02:59]}  exd4 {[%clk 0:02:57]} 4. Nxd4 {[%clk 0:02:58]}  Nf6 {[%clk 0:02:57]} 5. Nxc6 {[%clk 0:02:57]}  bxc6 {[%clk 0:02:58]} 6. e5 {[%clk 0:02:56]}  Qe7 {[%clk 0:02:57]} 7. Qe2 {[%clk 0:02:56]}  Nd5 {[%clk 0:02:57]} 8. h4 {[%clk 0:02:56]}  Qe6 {[%clk 0:02:22]} 9. g3 {[%clk 0:02:54]}  Bc5 {[%clk 0:02:19]} 10. Bh3 {[%clk 0:02:52]}  f5 {[%clk 0:02:15]} 11. c4 {[%clk 0:02:42]}  Nb6 {[%clk 0:02:10]} 12. Nd2 {[%clk 0:02:30]}  O-O {[%clk 0:02:05]} 13. O-O {[%clk 0:02:28]}  Qg6 {[%clk 0:01:54]} 14. Kh2 {[%clk 0:02:20]}  d6 {[%clk 0:01:42]} 15. Nf3 {[%clk 0:02:17]}  Ba6 {[%clk 0:01:33]} 16. b3 {[%clk 0:02:17]}  Rae8 {[%clk 0:01:31]} 17. Bf4 {[%clk 0:02:15]}  Nd5 {[%clk 0:01:27]} 18. Qd2 {[%clk 0:02:01]}  Bb4 {[%clk 0:01:19]} 19. Qc1 {[%clk 0:01:54]}  Nxf4 {[%clk 0:01:14]} 20. Qxf4 {[%clk 0:01:55]}  Bc3 {[%clk 0:01:08]} 21. Rad1 {[%clk 0:01:17]}  Bxe5 {[%clk 0:01:05]} 22. Nxe5 {[%clk 0:01:14]}  dxe5 {[%clk 0:01:05]} 23. Qf3 {[%clk 0:01:13]}  Bc8 {[%clk 0:00:57]} 24. Bg2 {[%clk 0:01:09]}  e4 {[%clk 0:00:52]} 25. Qf4 {[%clk 0:01:07]}  Re7 {[%clk 0:00:48]} 26. Rd2 {[%clk 0:01:05]}  Qf6 {[%clk 0:00:38]} 27. Rfd1 {[%clk 0:01:02]}  h6 {[%clk 0:00:37]} 28. Rd8 {[%clk 0:00:58]}  g5 {[%clk 0:00:38]} 29. hxg5 {[%clk 0:00:57]}  hxg5 {[%clk 0:00:38]} 30. Qe3 {[%clk 0:00:56]}  f4 {[%clk 0:00:34]} 31. Qc5 {[%clk 0:00:35]}  Rh7+ {[%clk 0:00:27]} 0-1


[Site "https://www.chess.com"]

[Event "Titled Tuesday Blitz July 4 Early 2023"]
[White "Schachpanda_Youtube"]
[Black "Rios Escobar, Adan"]
[BlackFideId "3403645"]
[WhiteElo "2208"]
[BlackElo "2402"]
[Result "1/2-1/2"]
[Round "9"]
[TimeControl "180+2"]
[Date "2023.07.04"]
[WhiteClock "0:00:18"]
[BlackClock "0:00:13"]
[Board "143"]

1. e4 {[%clk 0:03:00]}  c5 {[%clk 0:02:59]} 2. d4 {[%clk 0:03:00]}  cxd4 {[%clk 0:02:58]} 3. c3 {[%clk 0:03:01]}  dxc3 {[%clk 0:02:59]} 4. Nxc3 {[%clk 0:03:01]}  Nc6 {[%clk 0:03:00]} 5. Nf3 {[%clk 0:03:02]}  d6 {[%clk 0:03:00]} 6. Bc4 {[%clk 0:03:02]}  a6 {[%clk 0:03:01]} 7. O-O {[%clk 0:03:01]}  Nf6 {[%clk 0:03:01]} 8. h3 {[%clk 0:02:52]}  e6 {[%clk 0:02:58]} 9. Qe2 {[%clk 0:02:49]}  Be7 {[%clk 0:02:58]} 10. Rd1 {[%clk 0:02:49]}  Bd7 {[%clk 0:02:55]} 11. Bf4 {[%clk 0:02:43]}  Qb8 {[%clk 0:02:33]} 12. e5 {[%clk 0:02:29]}  dxe5 {[%clk 0:02:31]} 13. Nxe5 {[%clk 0:02:28]}  Nxe5 {[%clk 0:02:26]} 14. Bxe5 {[%clk 0:02:27]}  Qa7 {[%clk 0:02:18]} 15. Bxf6 {[%clk 0:02:01]}  gxf6 {[%clk 0:01:44]} 16. Rxd7 {[%clk 0:01:17]}  Kxd7 {[%clk 0:01:43]} 17. Rd1+ {[%clk 0:01:16]}  Ke8 {[%clk 0:01:37]} 18. Bxe6 {[%clk 0:00:54]}  fxe6 {[%clk 0:01:34]} 19. Qh5+ {[%clk 0:00:54]}  Kf8 {[%clk 0:01:31]} 20. Qh6+ {[%clk 0:00:47]}  Kg8 {[%clk 0:01:20]} 21. Rd3 {[%clk 0:00:40]}  Kf7 {[%clk 0:00:16]} 22. Qh5+ {[%clk 0:00:33]}  Kf8 {[%clk 0:00:16]} 23. Qh6+ {[%clk 0:00:23]}  Kf7 {[%clk 0:00:16]} 24. Qh5+ {[%clk 0:00:17]}  Kf8 {[%clk 0:00:16]} 25. Qh6+ {[%clk 0:00:18]}  Kf7 {[%clk 0:00:13]} 1/2-1/2


[Site "https://www.chess.com"]

[Event "Titled Tuesday Blitz July 4 Early 2023"]
[White "Floresvillar Gonzalez, Luis Migu"]
[Black "Duarte, Leonardo"]
[WhiteFideId "5100542"]
[BlackFideId "110582"]
[WhiteElo "2099"]
[BlackElo "2396"]
[Result "0-1"]
[Round "9"]
[TimeControl "180+2"]
[Date "2023.07.04"]
[WhiteClock "0:00:14"]
[BlackClock "0:00:12"]
[Board "145"]

1. d4 {[%clk 0:03:00]}  Nf6 {[%clk 0:02:58]} 2. c3 {[%clk 0:02:57]}  g6 {[%clk 0:02:58]} 3. Bg5 {[%clk 0:02:57]}  Bg7 {[%clk 0:02:57]} 4. Nd2 {[%clk 0:02:57]}  d5 {[%clk 0:02:56]} 5. e3 {[%clk 0:02:55]}  O-O {[%clk 0:02:56]} 6. Bd3 {[%clk 0:02:55]}  c5 {[%clk 0:02:56]} 7. Ngf3 {[%clk 0:02:53]}  b6 {[%clk 0:02:49]} 8. Qe2 {[%clk 0:02:49]}  Nc6 {[%clk 0:02:46]} 9. O-O {[%clk 0:02:46]}  Re8 {[%clk 0:02:20]} 10. Ne5 {[%clk 0:02:43]}  Nxe5 {[%clk 0:02:16]} 11. dxe5 {[%clk 0:02:43]}  Nd7 {[%clk 0:02:16]} 12. f4 {[%clk 0:02:41]}  f6 {[%clk 0:02:15]} 13. exf6 {[%clk 0:02:35]}  exf6 {[%clk 0:02:15]} 14. Bh4 {[%clk 0:02:30]}  c4 {[%clk 0:02:07]} 15. Bc2 {[%clk 0:02:23]}  Nc5 {[%clk 0:02:07]} 16. Rad1 {[%clk 0:02:13]}  Qe7 {[%clk 0:02:01]} 17. Rfe1 {[%clk 0:02:10]}  b5 {[%clk 0:01:24]} 18. h3 {[%clk 0:02:04]}  a5 {[%clk 0:01:20]} 19. Qf3 {[%clk 0:01:58]}  Bb7 {[%clk 0:01:19]} 20. Qf2 {[%clk 0:01:32]}  b4 {[%clk 0:01:08]} 21. e4 {[%clk 0:01:06]}  Nxe4 {[%clk 0:01:02]} 22. Bxe4 {[%clk 0:01:02]}  dxe4 {[%clk 0:00:59]} 23. Nxc4 {[%clk 0:01:01]}  Rad8 {[%clk 0:00:53]} 24. Qb6 {[%clk 0:00:52]}  Rxd1 {[%clk 0:00:47]} 25. Rxd1 {[%clk 0:00:51]}  e3 {[%clk 0:00:31]} 26. Qxa5 {[%clk 0:00:48]}  Qe4 {[%clk 0:00:24]} 27. Nxe3 {[%clk 0:00:29]}  Qxe3+ {[%clk 0:00:24]} 28. Kh2 {[%clk 0:00:20]}  Bxg2 {[%clk 0:00:14]} 29. Kxg2 {[%clk 0:00:15]}  Qe2+ {[%clk 0:00:14]} 30. Kg3 {[%clk 0:00:14]}  Re3# {[%clk 0:00:12]} 0-1


[Site "https://www.chess.com"]

[Event "Titled Tuesday Blitz July 4 Early 2023"]
[White "CarolinaLujan"]
[Black "Saito, Vinicius"]
[BlackFideId "2113384"]
[WhiteElo "2262"]
[BlackElo "2385"]
[Result "1-0"]
[Round "9"]
[TimeControl "180+2"]
[Date "2023.07.04"]
[WhiteClock "0:01:14"]
[BlackClock "0:01:38"]
[Board "148"]

1. e4 {[%clk 0:02:55]}  c5 {[%clk 0:03:00]} 2. g3 {[%clk 0:02:54]}  Nc6 {[%clk 0:03:00]} 3. Bg2 {[%clk 0:02:55]}  e5 {[%clk 0:03:00]} 4. Ne2 {[%clk 0:02:55]}  d6 {[%clk 0:03:00]} 5. O-O {[%clk 0:02:56]}  g6 {[%clk 0:02:59]} 6. c3 {[%clk 0:02:55]}  Bg7 {[%clk 0:02:59]} 7. a3 {[%clk 0:02:54]}  h5 {[%clk 0:02:58]} 8. h3 {[%clk 0:02:49]}  h4 {[%clk 0:02:56]} 9. g4 {[%clk 0:02:49]}  g5 {[%clk 0:02:54]} 10. b4 {[%clk 0:02:46]}  b6 {[%clk 0:02:54]} 11. b5 {[%clk 0:02:46]}  Nce7 {[%clk 0:02:53]} 12. d4 {[%clk 0:02:46]}  f6 {[%clk 0:02:47]} 13. Nd2 {[%clk 0:02:42]}  Ng6 {[%clk 0:02:47]} 14. dxc5 {[%clk 0:02:37]}  dxc5 {[%clk 0:02:46]} 15. Nc4 {[%clk 0:02:37]}  Be6 {[%clk 0:02:39]} 16. Nd6+ {[%clk 0:02:24]}  Kf8 {[%clk 0:02:30]} 17. Nf5 {[%clk 0:02:14]}  N8e7 {[%clk 0:02:28]} 18. Be3 {[%clk 0:02:08]}  Kf7 {[%clk 0:02:27]} 19. Nd6+ {[%clk 0:02:07]}  Kg8 {[%clk 0:02:26]} 20. Qd2 {[%clk 0:01:57]}  Qc7 {[%clk 0:02:26]} 21. Nf5 {[%clk 0:01:50]}  Kh7 {[%clk 0:02:22]} 22. Rfc1 {[%clk 0:01:46]}  Rhd8 {[%clk 0:02:21]} 23. Qe1 {[%clk 0:01:46]}  Bf8 {[%clk 0:02:17]} 24. c4 {[%clk 0:01:40]}  Nf4 {[%clk 0:02:10]} 25. Bxf4 {[%clk 0:01:36]}  exf4 {[%clk 0:02:10]} 26. e5 {[%clk 0:01:29]}  Qxe5 {[%clk 0:02:10]} 27. Bxa8 {[%clk 0:01:25]}  Rxa8 {[%clk 0:02:10]} 28. Nc3 {[%clk 0:01:26]}  Ng6 {[%clk 0:02:06]} 29. Ne4 {[%clk 0:01:18]}  Bxf5 {[%clk 0:02:03]} 30. Nxg5+ {[%clk 0:01:14]}  Kh6 {[%clk 0:01:38]} 31. Nf7+ {[%clk 0:01:14]} 1-0


[Site "https://www.chess.com"]